fUST/lending_fUST_20240227
["ID","MTS","AMOUNT","RATE_DAILY","PERIOD"]
[315428823,1709028642223,-500.0,0.00019726,2]
[315428824,1709028642336,-558.01,0.00019726,2]
[315428825,1709028642345,-500.0,0.00019726,2]
[315428826,1709028642354,-500.0,0.00019726,2]
[315428827,1709028642364,-500.0,0.00019726,2]
[315428828,1709028642374,-500.0,0.00019726,2]
[315428829,1709028642383,-500.0,0.00019726,2]
[315428830,1709028642392,-500.0,0.00019726,2]
[315428831,1709028642402,-212.44196053,0.00019726,2]
[315428832,1709028642411,-1532.08,0.00019726,2]
[315428833,1709028642420,-395.16181797,0.00019726,2]
[315428834,1709028642430,-500.0,0.00019726,2]
[315428835,1709028642440,-500.0,0.00019726,2]
[315428836,1709028642449,-317.207108,0.00019726,2]
[315428837,1709028642459,-1453.74,0.00019726,2]
[315428838,1709028642468,-500.0,0.00019726,2]
[315428839,1709028642478,-500.0,0.00019726,2]
[315428840,1709028642487,-500.0,0.00019726,2]
[315428841,1709028642496,-500.0,0.00019726,2]
[315428842,1709028642505,-500.0,0.00019726,2]
[315428843,1709028642514,-500.0,0.00019726,2]
[315428844,1709028642523,-631.85,0.00019726,2]
[315428845,1709028642532,-315.7665185,0.00019726,2]
[315428846,1709028642543,-868.09,0.00019726,2]
[315428847,1709028642552,-500.0,0.00019726,2]
[315428848,1709028642562,-500.0,0.00019726,2]
[315428849,1709028642572,-500.0,0.00019726,2]
[315428850,1709028642582,-500.0,0.00019726,2]
[315428851,1709028642591,-742.1,0.00019726,2]
[315428852,1709028642600,-500.0,0.00019726,2]
[315428853,1709028642610,-1214.2,0.00019726,2]
[315428854,1709028642621,-2275.7,0.00019726,2]
[315428855,1709028642630,-500.0,0.00019726,2]
[315428856,1709028642639,-710.69,0.00019726,2]
[315428857,1709028642650,-500.0,0.00019726,2]
[315428858,1709028642659,-1002.42085392,0.00019726,2]
[315428859,1709028642669,-9197.61,0.00019726,2]
[315428860,1709028642679,-500.0,0.00019726,2]
[315428861,1709028642688,-500.0,0.00019726,2]
[315428862,1709028642697,-1302.14,0.00019726,2]
[315428863,1709028642706,-3618.02,0.00019726,2]
[315428864,1709028642715,-1764.95,0.00019726,2]
[315428865,1709028642724,-500.0,0.00019726,2]
[315428866,1709028642733,-299.44952129,0.00019726,2]
[315428867,1709028642742,-571.45,0.00019726,2]
[315428868,1709028642751,-500.0,0.00019726,2]
[315428869,1709028642760,-502.32182453,0.00019726,2]
[315428870,1709028642770,-500.0,0.00019726,2]
[315428871,1709028642779,-2446.33,0.00019726,2]
[315428872,1709028642787,-500.0,0.00019726,2]
[315428873,1709028642796,-1864.84,0.00019726,2]
[315428874,1709028642805,-500.0,0.00019726,2]
[315428875,1709028642814,-495.60629693,0.00019726,2]
[315428876,1709028642825,-500.0,0.00019726,2]
[315428877,1709028642834,-500.0,0.00019726,2]
[315428878,1709028642843,-401.01611644,0.00019726,2]
[315428879,1709028642852,-17022.86,0.00019726,2]
[315428880,1709028642862,-500.0,0.00019726,2]
[315428881,1709028642871,-500.0,0.00019726,2]
[315428882,1709028642880,-500.0,0.00019726,2]
[315428883,1709028642890,-1684.1,0.00019726,2]
[315428884,1709028642899,-500.0,0.00019726,2]
[315428885,1709028642908,-500.0,0.00019726,2]
[315428886,1709028642917,-1299.17,0.00019726,2]
[315428887,1709028642926,-500.0,0.00019726,2]
[315428888,1709028642936,-500.0,0.00019726,2]
[315428889,1709028642945,-3035.03,0.00019726,2]
[315428890,1709028642954,-466.40052004,0.00019726,2]
[315428891,1709028642963,-6468.19,0.00019726,2]
[315428892,1709028642972,-500.0,0.00019726,2]
[315428893,1709028642981,-1295.41,0.00019726,2]
[315428894,1709028642990,-500.0,0.00019726,2]
[315428895,1709028642999,-591.02,0.00019726,2]
[315428896,1709028643008,-533.40617444,0.00019726,2]
[315428897,1709028643017,-4493.34,0.00019726,2]
[315428898,1709028643026,-2378.1,0.00019726,2]
[315428899,1709028643035,-2125.67,0.00019726,2]
[315428901,1709028643045,-3836.51,0.00019726,2]
[315428902,1709028643053,-500.0,0.00019726,2]
[315428903,1709028643062,-3097.14,0.00019726,2]
[315428904,1709028643073,-17880.1,0.00019726,2]
[315428905,1709028643082,-864.77,0.00019726,2]
[315428906,1709028643091,-500.0,0.00019726,2]
[315428908,1709028643101,-500.0,0.00019726,2]
[315428909,1709028643110,-500.0,0.00019726,2]
[315428911,1709028643119,-1660.55,0.00019726,2]
[315428912,1709028643128,-728.61,0.00019726,2]
[315428913,1709028643138,-500.0,0.00019726,2]
[315428914,1709028643146,-500.0,0.00019726,2]
[315428915,1709028643156,-1049.68,0.00019726,2]
[315428916,1709028643165,-500.0,0.00019726,2]
[315428917,1709028643174,-922.88634181,0.00019872,2]
[315428918,1709028643183,-821.94,0.00019888,2]
[315428919,1709028643192,-821.94,0.00019999,2]
[315428920,1709028643201,-500.0,0.0002,2]
[315428921,1709028643211,-152.71571378,0.0002,2]
[315428922,1709028643220,-500.0,0.0002,2]
[315428923,1709028643229,-1028.52,0.0002,2]
[315428924,1709028643238,-500.0,0.0002,2]
[315428925,1709028643247,-1276.28,0.0002,2]
[315428926,1709028643255,-151.65163799,0.0002,2]
[315428927,1709028643264,-661.26,0.0002,2]
[315428928,1709028643274,-531.36,0.0002,2]
[315428929,1709028643283,-500.0,0.0002,2]
[315428930,1709028643292,-714.04,0.0002,2]
[315428931,1709028643301,-282.98479173,0.0002,2]
[315428932,1709028643310,-500.0,0.0002,2]
[315428933,1709028643320,-525.27752141,0.0002,2]
[315428935,1709028643329,-500.0,0.0002,2]
[315428937,1709028643339,-500.0,0.0002,2]
[315428939,1709028643348,-577.73,0.0002,2]
[315428940,1709028643357,-558.01,0.0002,2]
[315428941,1709028643366,-500.0,0.0002,2]
[315428942,1709028643376,-500.0,0.0002,2]
[315428944,1709028643384,-500.0,0.0002,2]
[315428946,1709028643394,-500.0,0.0002,2]
[315428948,1709028643403,-448.32673264,0.0002,2]
[315428950,1709028643413,-1532.08,0.0002,2]
[315428952,1709028643422,-552.56513057,0.0002,2]
[315428953,1709028643431,-1453.74,0.0002,2]
[315428955,1709028643440,-500.0,0.0002,2]
[315428957,1709028643449,-500.0,0.0002,2]
[315428958,1709028643458,-500.0,0.0002,2]
[315428959,1709028643467,-500.0,0.0002,2]
[315428960,1709028643477,-382.1661985,0.0002,2]
[315428961,1709028643486,-500.0,0.0002,2]
[315428962,1709028643495,-631.85,0.0002,2]
[315428964,1709028643504,-868.09,0.0002,2]
[315428966,1709028643513,-500.0,0.0002,2]
[315428967,1709028643523,-500.0,0.0002,2]
[315428968,1709028643532,-500.0,0.0002,2]
[315428969,1709028643543,-169.21456967,0.0002,2]
[315428970,1709028643552,-742.1,0.0002,2]
[315428971,1709028643562,-398.21029264,0.0002,2]
[315428972,1709028643575,-1214.2,0.0002,2]
[315428973,1709028643584,-2275.7,0.0002,2]
[315428974,1709028643594,-500.0,0.0002,2]
[315428975,1709028643607,-710.69,0.0002,2]
[315428976,1709028643619,-500.0,0.0002,2]
[315428977,1709028643629,-9197.61,0.0002,2]
[315428978,1709028643640,-500.0,0.0002,2]
[315428979,1709028643650,-501.80817925,0.0002,2]
[315428980,1709028643660,-1302.14,0.0002,2]
[315428981,1709028643670,-3618.02,0.0002,2]
[315428982,1709028643693,-1764.95,0.0002,2]
[315428983,1709028643704,-500.0,0.0002,2]
[315428984,1709028643716,-571.45,0.0002,2]
[315428985,1709028643726,-500.0,0.0002,2]
[315428986,1709028643737,-158.76788744,0.0002,2]
[315428987,1709028643746,-2446.33,0.0002,2]
[315428988,1709028643756,-501.22134572,0.0002,2]
[315428989,1709028643766,-1864.84,0.0002,2]
[315428990,1709028643776,-500.0,0.0002,2]
[315428991,1709028643786,-492.17596096,0.0002,2]
[315428992,1709028643795,-17022.86,0.0002,2]
[315428993,1709028643805,-500.0,0.0002,2]
[315428994,1709028643815,-587.72307026,0.0002,2]
[315428995,1709028643827,-1684.1,0.0002,2]
[315428996,1709028643837,-500.0,0.0002,2]
[315428997,1709028643847,-391.84467758,0.0002,2]
[315428998,1709028643856,-1299.17,0.0002,2]
[315428999,1709028643866,-500.0,0.0002,2]
[315429000,1709028643876,-3035.03,0.0002,2]
[315429001,1709028643886,-6468.19,0.0002,2]
[315429002,1709028643896,-500.0,0.0002,2]
[315429003,1709028643906,-1295.41,0.0002,2]
[315429004,1709028643915,-500.0,0.0002,2]
[315429005,1709028643925,-591.02,0.0002,2]
[315429006,1709028643935,-4493.34,0.0002,2]
[315429007,1709028643944,-2378.1,0.0002,2]
[315429008,1709028643954,-2125.67,0.0002,2]
[315429009,1709028643964,-3836.51,0.0002,2]
[315429010,1709028643973,-500.0,0.0002,2]
[315429011,1709028643985,-3097.14,0.0002,2]
[315429012,1709028643995,-17880.1,0.0002,2]
[315429013,1709028644005,-864.77,0.0002,2]
[315429014,1709028644015,-500.0,0.0002,2]
[315429015,1709028644025,-500.0,0.0002,2]
[315429016,1709028644035,-500.0,0.0002,2]
[315429017,1709028644045,-1660.55,0.0002,2]
[315429018,1709028644054,-728.61,0.0002,2]
[315429019,1709028644064,-336.69898198,0.0002,2]
[315429020,1709028644075,-500.0,0.0002,2]
[315429022,1709028644086,-1049.68,0.0002,2]
[315429023,1709028644095,-50000.0,0.00020018,5]
[315429025,1709028644106,-153.0,0.00020055,2]
[315429026,1709028644116,-166.666666,0.00020076,2]
[315429027,1709028644126,-922.88634181,0.00020159,2]
[315429028,1709028644136,-821.94,0.00020162,2]
[315429029,1709028644145,-153.0,0.00020192,2]
[315429030,1709028644154,-821.94,0.00020272,2]
[315429031,1709028644164,-821.94,0.00020272,2]
[315429032,1709028644174,-500.0,0.00020273,2]
[315429033,1709028644183,-1028.52,0.00020273,2]
[315429034,1709028644193,-500.0,0.00020273,2]
[315429035,1709028644202,-1276.28,0.00020273,2]
[315429036,1709028644212,-661.26,0.00020273,2]
[315429037,1709028644222,-531.36,0.00020273,2]
[315429038,1709028644231,-500.0,0.00020273,2]
[315429039,1709028644242,-714.04,0.00020273,2]
[315429040,1709028644252,-500.0,0.00020273,2]
[315429041,1709028644262,-500.0,0.00020273,2]
[315429042,1709028644272,-577.73,0.00020273,2]
[315429043,1709028644282,-558.01,0.00020273,2]
[315429044,1709028644292,-500.0,0.00020273,2]
[315429045,1709028644302,-231.23191091,0.00020273,2]
[315429046,1709028644312,-500.0,0.00020273,2]
[315429047,1709028644322,-1532.08,0.00020273,2]
[315429048,1709028644332,-1453.74,0.00020273,2]
[315429049,1709028644341,-543.7600871,0.00020273,2]
[315429050,1709028644351,-500.0,0.00020273,2]
[315429051,1709028644360,-516.53805559,0.00020273,2]
[315429052,1709028644370,-631.85,0.00020273,2]
[315429053,1709028644380,-868.09,0.00020273,2]
[315429054,1709028644390,-500.0,0.00020273,2]
[315429055,1709028644399,-500.0,0.00020273,2]
[315429056,1709028644409,-742.1,0.00020273,2]
[315429057,1709028644418,-1214.2,0.00020273,2]
[315429058,1709028644427,-2275.7,0.00020273,2]
[315429059,1709028644437,-500.0,0.00020273,2]
[315429060,1709028644446,-174.56092939,0.00020273,2]
[315429061,1709028644456,-710.69,0.00020273,2]
[315429062,1709028644465,-9197.61,0.00020273,2]
[315429063,1709028644474,-500.0,0.00020273,2]
[315429064,1709028644484,-1302.14,0.00020273,2]
[315429065,1709028644493,-3618.02,0.00020273,2]
[315429066,1709028644503,-1764.95,0.00020273,2]
[315429067,1709028644513,-500.0,0.00020273,2]
[315429068,1709028644523,-571.45,0.00020273,2]
[315429069,1709028644536,-500.0,0.00020273,2]
[315429070,1709028644545,-2446.33,0.00020273,2]
[315429071,1709028644555,-1864.84,0.00020273,2]
[315429072,1709028644564,-500.0,0.00020273,2]
[315429073,1709028644575,-17022.86,0.00020273,2]
[315429074,1709028644585,-500.0,0.00020273,2]
[315429075,1709028644594,-1684.1,0.00020273,2]
[315429076,1709028644713,-500.0,0.00020273,2]
[315429077,1709028644724,-1299.17,0.00020273,2]
[315429078,1709028644733,-500.0,0.00020273,2]
[315429079,1709028644742,-3035.03,0.00020273,2]
[315429080,1709028644751,-6468.19,0.00020273,2]
[315429081,1709028644761,-500.0,0.00020273,2]
[315429082,1709028644770,-1295.41,0.00020273,2]
[315429083,1709028644779,-500.0,0.00020273,2]
[315429084,1709028644788,-591.02,0.00020273,2]
[315429085,1709028644797,-4493.34,0.00020273,2]
[315429086,1709028644807,-2378.1,0.00020273,2]
[315429087,1709028644816,-2125.67,0.00020273,2]
[315429088,1709028644825,-3836.51,0.00020273,2]
[315429089,1709028644835,-500.0,0.00020273,2]
[315429090,1709028644844,-3097.14,0.00020273,2]
[315429091,1709028644853,-17880.1,0.00020273,2]
[315429092,1709028644862,-864.77,0.00020273,2]
[315429093,1709028644871,-500.0,0.00020273,2]
[315429094,1709028644881,-500.0,0.00020273,2]
[315429095,1709028644890,-1660.55,0.00020273,2]
[315429096,1709028644899,-728.61,0.00020273,2]
[315429097,1709028644909,-1049.68,0.00020273,2]
[315429098,1709028644918,-200.6117409,0.00020288,2]
[315429099,1709028644927,-458.77899818,0.00020328,2]
[315429100,1709028644936,-500.0,0.00020389,2]
[315429101,1709028644945,-821.94,0.0002043,2]
[315429102,1709028644954,-821.94,0.0002043,2]
[315429103,1709028644963,-821.94,0.0002043,2]
[315429104,1709028644973,-821.94,0.0002043,2]
[315429105,1709028644982,-821.94,0.0002043,2]
[315429106,1709028644992,-500.0,0.0002043,2]
[315429107,1709028645001,-500.0,0.0002043,2]
[315429108,1709028645010,-483.35573901,0.0002043,2]
[315429109,1709028645019,-329.80280131,0.0002043,2]
[315429110,1709028645029,-500.0,0.0002043,2]
[315429111,1709028645038,-500.0,0.0002043,2]
[315429112,1709028645049,-500.0,0.0002043,2]
[315429113,1709028645061,-500.0,0.0002043,2]
[315429114,1709028645071,-500.0,0.0002043,2]
[315429115,1709028645082,-500.0,0.0002043,2]
[315429116,1709028645092,-500.0,0.0002043,2]
[315429117,1709028645103,-476.85954565,0.0002043,2]
[315429118,1709028645115,-821.95258347,0.0002043,2]
[315429119,1709028645127,-500.0,0.0002043,2]
[315429120,1709028645137,-500.0,0.0002043,2]
[315429121,1709028645149,-500.0,0.0002043,2]
[315429122,1709028645160,-500.0,0.0002043,2]
[315429123,1709028645171,-500.0,0.0002043,2]
[315429124,1709028645182,-233.06091591,0.0002043,2]
[315429125,1709028645193,-500.0,0.0002043,2]
[315429126,1709028645203,-500.0,0.0002043,2]
[315429127,1709028645213,-326.32993225,0.0002043,2]
[315429128,1709028645223,-500.0,0.0002043,2]
[315429129,1709028645235,-500.0,0.0002043,2]
[315429130,1709028645246,-500.0,0.0002043,2]
[315429131,1709028645255,-500.0,0.0002043,2]
[315429132,1709028645264,-500.0,0.0002043,2]
[315429133,1709028645273,-500.0,0.0002043,2]
[315429134,1709028645282,-500.0,0.0002043,2]
[315429135,1709028645291,-500.0,0.0002043,2]
[315429136,1709028645300,-500.0,0.0002043,2]
[315429137,1709028645309,-500.0,0.0002043,2]
[315429138,1709028645318,-500.0,0.0002043,2]
[315429139,1709028645328,-500.0,0.0002043,2]
[315429140,1709028645337,-500.0,0.0002043,2]
[315429141,1709028645346,-560.17217773,0.0002043,2]
[315429142,1709028645356,-500.0,0.0002043,2]
[315429143,1709028645365,-500.0,0.0002043,2]
[315429144,1709028645374,-500.0,0.0002043,2]
[315429145,1709028645383,-96072.54768136,0.00020431,2]
[315429146,1709028645393,-922.88634181,0.00020447,2]
[315429147,1709028645402,-175.5,0.000205,2]
[315429148,1709028645412,-500.0,0.00020506,2]
[315429149,1709028645421,-166.666666,0.00020524,2]
[315429150,1709028645430,-31072.12739278,0.0002054,5]
[315429151,1709028645440,-19080.01019392,0.00020542,3]
[315429152,1709028645449,-5000.0,0.00020542,5]
[315429153,1709028645460,-994.77094761,0.00020542,3]
[315429154,1709028645469,-5000.0,0.00020542,5]
[315429155,1709028645478,-3169.20244548,0.00020542,3]
[315429156,1709028645487,-5000.0,0.00020542,5]
[315429157,1709028645496,-405.31616605,0.00020547,2]
[315429158,1709028645505,-1028.52,0.00020547,2]
[315429159,1709028645514,-500.0,0.00020547,2]
[315429160,1709028645524,-1276.28,0.00020547,2]
[315429161,1709028645533,-661.26,0.00020547,2]
[315429162,1709028645543,-531.36,0.00020547,2]
[315429163,1709028645555,-373.58043947,0.00020547,2]
[315429164,1709028645565,-714.04,0.00020547,2]
[315429165,1709028645574,-485.67,0.00020547,2]
[315429166,1709028645584,-577.73,0.00020547,2]
[315429167,1709028645593,-558.01,0.00020547,2]
[315429168,1709028645603,-224.5571896,0.00020547,2]
[315429169,1709028645612,-416.75157953,0.00020547,2]
[315429170,1709028645622,-1532.08,0.00020547,2]
[315429171,1709028645631,-1453.74,0.00020547,2]
[315429172,1709028645640,-500.0,0.00020547,2]
[315429173,1709028645649,-631.85,0.00020547,2]
[315429174,1709028645659,-868.09,0.00020547,2]
[315429175,1709028645670,-500.0,0.00020547,2]
[315429176,1709028645679,-742.1,0.00020547,2]
[315429177,1709028645688,-1214.2,0.00020547,2]
[315429178,1709028645698,-2275.7,0.00020547,2]
[315429179,1709028645707,-710.69,0.00020547,2]
[315429180,1709028645717,-9197.61,0.00020547,2]
[315429181,1709028645726,-517.68,0.00020547,2]
[315429182,1709028645736,-1302.14,0.00020547,2]
[315429183,1709028645746,-3618.02,0.00020547,2]
[315429184,1709028645755,-1764.95,0.00020547,2]
[315429185,1709028645765,-409.98,0.00020547,2]
[315429186,1709028645775,-571.45,0.00020547,2]
[315429187,1709028645784,-500.0,0.00020547,2]
[315429188,1709028645794,-2446.33,0.00020547,2]
[315429189,1709028645803,-1864.84,0.00020547,2]
[315429190,1709028645812,-17022.86,0.00020547,2]
[315429191,1709028645822,-500.0,0.00020547,2]
[315429192,1709028645832,-1684.1,0.00020547,2]
[315429193,1709028645842,-500.0,0.00020547,2]
[315429194,1709028645851,-1299.17,0.00020547,2]
[315429195,1709028645861,-3035.03,0.00020547,2]
[315429196,1709028645871,-6468.19,0.00020547,2]
[315429197,1709028645880,-500.0,0.00020547,2]
[315429198,1709028645890,-1295.41,0.00020547,2]
[315429199,1709028645900,-500.0,0.00020547,2]
[315429200,1709028645909,-591.02,0.00020547,2]
[315429201,1709028645918,-4493.34,0.00020547,2]
[315429202,1709028645927,-2378.1,0.00020547,2]
[315429203,1709028645936,-2125.67,0.00020547,2]
[315429204,1709028645945,-3836.51,0.00020547,2]
[315429205,1709028645953,-3097.14,0.00020547,2]
[315429206,1709028645962,-17880.1,0.00020547,2]
[315429207,1709028645972,-864.77,0.00020547,2]
[315429208,1709028645981,-500.0,0.00020547,2]
[315429209,1709028645990,-500.0,0.00020547,2]
[315429210,1709028645999,-1660.55,0.00020547,2]
[315429211,1709028646009,-728.61,0.00020547,2]
[315429212,1709028646018,-1049.68,0.00020547,2]
[315429213,1709028646027,-155.0,0.00020548,2]
[315429214,1709028646037,-500.0,0.00020623,2]
[315429215,1709028646046,-167.76011141,0.00020683,2]
[315429216,1709028646055,-520.19118071,0.00020683,2]
[315429217,1709028646064,-301.92712812,0.00020683,2]
[315429218,1709028646073,-253.07547874,0.00020683,2]
[315429219,1709028646082,-500.0,0.0002074,2]
[315429220,1709028646091,-200.6117409,0.00020781,2]
[315429221,1709028646101,-200.6117409,0.00020781,2]
[315429222,1709028646110,-200.6117409,0.00020781,2]
[315429223,1709028646119,-200.6117409,0.00020781,2]
[315429224,1709028646129,-200.6117409,0.00020781,2]
[315429225,1709028646137,-200.6117409,0.00020781,2]
[315429226,1709028646147,-200.5244244,0.00020781,2]
[315429227,1709028646156,-200.6117409,0.00020781,2]
[315429228,1709028646165,-200.6117409,0.00020781,2]
[315429229,1709028646175,-200.6117409,0.00020781,2]
[315429230,1709028646184,-401.2234818,0.00020781,2]
[315429231,1709028646193,-200.6117409,0.00020781,2]
[315429232,1709028646202,-200.6117409,0.00020781,2]
[315429233,1709028646212,-1028.52,0.00020821,2]
[315429234,1709028646220,-500.0,0.00020821,2]
[315429235,1709028646230,-1276.28,0.00020821,2]
[315429236,1709028646239,-661.26,0.00020821,2]
[315429237,1709028646248,-531.36,0.00020821,2]
[315429238,1709028646257,-714.04,0.00020821,2]
[315429239,1709028646267,-577.73,0.00020821,2]
[315429240,1709028646275,-558.01,0.00020821,2]
[315429241,1709028646284,-1532.08,0.00020821,2]
[315429242,1709028646294,-1453.74,0.00020821,2]
[315429243,1709028646303,-547.67624046,0.00020821,2]
[315429245,1709028646312,-631.85,0.00020821,2]
[315429246,1709028646322,-868.09,0.00020821,2]
[315429247,1709028646332,-500.0,0.00020821,2]
[315429248,1709028646341,-742.1,0.00020821,2]
[315429249,1709028646350,-1214.2,0.00020821,2]
[315429250,1709028646359,-2275.7,0.00020821,2]
[315429251,1709028646368,-710.69,0.00020821,2]
[315429252,1709028646378,-9197.61,0.00020821,2]
[315429253,1709028646387,-1302.14,0.00020821,2]
[315429254,1709028646397,-3618.02,0.00020821,2]
[315429255,1709028646406,-1764.95,0.00020821,2]
[315429256,1709028646415,-571.45,0.00020821,2]
[315429257,1709028646425,-500.0,0.00020821,2]
[315429259,1709028646434,-2446.33,0.00020821,2]
[315429261,1709028646443,-1864.84,0.00020821,2]
[315429263,1709028646452,-7274.24507859,0.00020821,2]
[315429274,1709028647411,-479.02635274,0.00019178,2]
[315429275,1709028647420,-500.30153018,0.00019178,2]
[315429276,1709028647429,-1347.16486062,0.00019352,2]
[315429277,1709028647439,-500.0,0.0002,2]
[315429278,1709028647448,-9748.61492141,0.00020821,2]
[315429279,1709028647458,-500.0,0.00020821,2]
[315429280,1709028647468,-1684.1,0.00020821,2]
[315429281,1709028647478,-500.0,0.00020821,2]
[315429282,1709028647488,-1299.17,0.00020821,2]
[315429283,1709028647498,-3035.03,0.00020821,2]
[315429284,1709028647507,-6468.19,0.00020821,2]
[315429285,1709028647517,-500.0,0.00020821,2]
[315429286,1709028647527,-1295.41,0.00020821,2]
[315429287,1709028647537,-500.0,0.00020821,2]
[315429288,1709028647549,-591.02,0.00020821,2]
[315429289,1709028647560,-4493.34,0.00020821,2]
[315429290,1709028647570,-2378.1,0.00020821,2]
[315429291,1709028647581,-2125.67,0.00020821,2]
[315429292,1709028647594,-3836.51,0.00020821,2]
[315429293,1709028647604,-3097.14,0.00020821,2]
[315429294,1709028647614,-11786.60911205,0.00020821,2]
[315429295,1709028647627,-656.65764238,0.00020821,2]
[315429296,1709028647639,-5436.83324557,0.00020821,2]
[315429297,1709028647648,-864.77,0.00020821,2]
[315429298,1709028647657,-500.0,0.00020821,2]
[315429299,1709028647666,-500.0,0.00020821,2]
[315429300,1709028647675,-1266.30932669,0.00020821,2]
[315429333,1709029831879,-463.7665836,0.00018177,2]
[315429468,1709029837758,-673.39310868,0.00018177,2]
[315429470,1709029837767,-583.352073,0.00018178,2]
[315429472,1709029837777,-1003.83651236,0.000189,2]
[315429474,1709029837786,-688.24344223,0.00019,2]
[315429476,1709029837795,-500.0,0.00019177,2]
[315429478,1709029837804,-500.0,0.00019178,2]
[315429480,1709029837814,-500.0,0.00019178,2]
[315429483,1709029837824,-500.0,0.00019178,2]
[315429485,1709029837833,-501.56110135,0.00019178,2]
[315429487,1709029837842,-500.0,0.00019178,2]
[315429489,1709029837851,-241.16363331,0.00019178,2]
[315429492,1709029837863,-260.93932025,0.00019178,2]
[315429494,1709029837873,-500.0,0.00019178,2]
[315429496,1709029837883,-500.0,0.00019178,2]
[315429498,1709029837893,-219.47365743,0.00019178,2]
[315429500,1709029837907,-500.0,0.00019178,2]
[315429502,1709029837918,-557.52,0.00019178,2]
[315429504,1709029837927,-500.0,0.00019178,2]
[315429506,1709029837936,-113.51641855,0.00019178,2]
[315429509,1709029837952,-386.48358145,0.00019178,2]
[315429511,1709029837962,-502.97392599,0.00019178,2]
[315429513,1709029837971,-207.63249256,0.00019178,2]
[315429515,1709029837984,-292.36750744,0.00019178,2]
[315429517,1709029837993,-500.0,0.00019178,2]
[315429519,1709029838002,-429.14374354,0.00019178,2]
[315429521,1709029838011,-306.5412734,0.00019178,2]
[315429523,1709029838022,-193.4587266,0.00019178,2]
[315429525,1709029838031,-500.0,0.00019178,2]
[315429527,1709029838040,-500.0,0.00019178,2]
[315429529,1709029838049,-500.0,0.00019178,2]
[315429531,1709029838058,-500.82103858,0.00019178,2]
[315429533,1709029838068,-500.0,0.00019178,2]
[315429535,1709029838076,-606.07,0.00019178,2]
[315429537,1709029838085,-500.0,0.00019178,2]
[315429539,1709029838094,-500.0,0.00019178,2]
[315429541,1709029838103,-500.57076762,0.00019178,2]
[315429543,1709029838112,-500.0,0.00019178,2]
[315429545,1709029838121,-583.52,0.00019178,2]
[315429547,1709029838130,-500.0,0.00019178,2]
[315429549,1709029838139,-500.0,0.00019178,2]
[315429551,1709029838149,-500.0,0.00019178,2]
[315429553,1709029838158,-322.01702261,0.00019178,2]
[315429555,1709029838168,-587.18999209,0.00019178,2]
[315429557,1709029838177,-500.0,0.00019178,2]
[315429559,1709029838187,-500.0,0.00019178,2]
[315429561,1709029838196,-484.68828036,0.00019178,2]
[315429563,1709029838209,-15.31171964,0.00019178,2]
[315429565,1709029838218,-500.0,0.00019178,2]
[315429567,1709029838227,-272.18893036,0.00019178,2]
[315429568,1709029838239,-12.86915812,0.00019178,2]
[315429570,1709029838248,-500.0,0.00019178,2]
[315429572,1709029838257,-285.0121313,0.00019178,2]